bitfinex/quotes_SOLUSD_20241115
["timestamp","ask_amount","ask_price","bid_price","bid_amount"]
[1731685202270,0.21916462,207.86,207.85,27.02811511]
[1731685202973,0.09367462,207.86,207.83,22.21701511]
[1731685203180,0.09367462,207.86,207.85,22.21701511]
[1731685203483,0.25098,207.85,207.84,22.21701511]
[1731685204581,15.8737,207.94,207.85,16.839]
[1731685204901,15.8737,207.94,207.92,22.21701511]
[1731685205075,0.1,207.95,207.93,22.21701511]
[1731685205278,6.1032,207.98,207.94,22.21701511]
[1731685205474,6.1032,207.98,207.97,22.21701511]
[1731685205674,9.5689,207.98,207.96,22.21701511]
[1731685205884,0.09367462,207.97,207.96,22.21701511]
[1731685206576,0.25098,207.97,207.96,22.21701511]
[1731685206879,0.25098,207.96,207.91,16.8341]
[1731685207392,6.4701,208.03,207.91,40.8829]
[1731685207777,0.09367462,208.02,207.91,40.8829]
[1731685207977,0.09367462,208.02,208.01,22.21701511]
[1731685208176,6.4701,208.03,208.01,22.21701511]
[1731685208409,0.1,208.05,208.02,22.21701511]
[1731685208577,0.1,208.05,208.04,22.21701511]
[1731685208896,0.1,208.05,208.03,22.21701511]
[1731685209284,0.1,208.05,208.04,22.21701511]
[1731685209480,3.5643,208.07,208.04,22.21701511]
[1731685210376,0.1,208.07,208.06,22.21701511]
[1731685210578,0.1,208.09,208.06,22.21701511]
[1731685211190,0.4742686,208.1,208.08,22.21701511]
[1731685211493,0.1,208.08,208.06,22.21701511]
[1731685211699,0.1,208.08,208.05,22.21701511]
[1731685212281,0.1,208.08,208.03,22.21701511]
[1731685212508,0.35098,208.08,208.04,22.21701511]
[1731685212884,3.71508,208.08,208.04,22.21701511]
[1731685213301,0.1,208.04,207.98,22.21701511]
[1731685213609,0.1,208.01,207.95,22.21701511]
[1731685213782,0.1,207.99,207.89,12.0252]
[1731685213987,0.12549,207.99,207.96,22.21701511]
[1731685214209,0.12549,207.99,207.89,12.0252]
[1731685214423,0.1,208.14,207.91,0.09367462]
[1731685214595,15.2615,208.16,207.96,0.1]
[1731685214792,3.3632,208.14,207.95,16.8309]
[1731685214991,3.4632,208.14,207.95,16.8309]
[1731685215209,0.1,208.12,208.0,22.21701511]
[1731685215417,3.4635,208.12,208.07,22.21701511]
[1731685215703,0.09367462,208.09,208.08,22.21701511]
[1731685216283,3.5631,208.14,208.08,22.21701511]
[1731685216489,0.1,208.12,208.08,22.21701511]
[1731685216811,0.09367462,208.09,208.08,22.21701511]
[1731685217615,0.44465462,208.09,208.05,22.21701511]
[1731685218407,0.44465462,208.09,208.03,12.0172]
[1731685218408,0.34465462,208.09,208.07,22.21701511]
[1731685218614,0.44465462,208.09,208.07,22.21701511]
[1731685218814,0.44465462,208.09,208.05,22.21701511]
[1731685219017,3.364,208.08,208.05,22.21701511]
[1731685219310,0.25098,208.07,208.04,22.21701511]
[1731685219498,0.25098,208.07,208.05,22.21701511]
[1731685219697,0.25098,208.08,208.05,22.21701511]
[1731685219904,0.25098,208.08,208.06,22.21701511]
[1731685220110,0.25098,208.08,208.05,22.21701511]
[1731685220304,0.25098,208.08,208.04,22.21701511]
[1731685220634,23.776884,208.07,208.01,22.21701511]
[1731685220819,0.12549,208.06,207.94,12.0222]
[1731685221016,0.12549,208.06,208.05,22.21701511]
[1731685221903,0.25098,208.08,208.04,22.21701511]
[1731685222104,3.61508,208.08,208.04,22.21701511]
[1731685222505,0.25098,208.08,208.05,22.21701511]
[1731685222713,0.25098,208.08,208.07,22.21701511]
[1731685223834,0.25098,208.08,208.04,22.21701511]
[1731685223998,0.25098,208.08,208.05,22.21701511]
[1731685224203,0.25098,208.08,208.06,22.21701511]
[1731685224718,0.4742686,208.1,208.07,22.21701511]
[1731685224916,0.4742686,208.1,208.09,22.21701511]
[1731685225334,0.56794322,208.1,208.09,22.21701511]
[1731685225703,0.56794322,208.1,208.08,22.21701511]
[1731685225902,0.4742686,208.1,208.09,22.21701511]
[1731685226603,0.4742686,208.1,208.09,27.02261511]
[1731685226918,0.4742686,208.1,208.09,69.23963022]
[1731685227533,0.4742686,208.1,208.09,47.02261511]
[1731685227829,3.3623,208.19,208.09,61.25363022]
[1731685228034,0.1,208.18,208.16,22.21701511]
[1731685228216,0.1,208.21,208.17,22.21701511]
[1731685228529,0.1,208.21,208.2,22.21701511]
[1731685228736,0.1,208.23,208.2,22.21701511]
[1731685228901,0.1,208.23,208.22,22.21701511]
[1731685229306,15.3772,208.26,208.22,22.21701511]
[1731685229505,15.3772,208.26,208.2,22.21701511]
[1731685229506,0.1,208.26,208.25,22.21701511]
[1731685229730,0.09367462,208.25,208.24,22.21701511]
[1731685229907,0.1,208.26,208.24,22.21701511]
[1731685230113,0.1,208.26,208.25,22.21701511]
[1731685230420,0.1,208.24,208.14,16.8154]
[1731685230616,0.09367462,208.23,208.21,22.21701511]
[1731685231124,0.21916462,208.23,208.22,22.21701511]
[1731685231326,0.34465462,208.23,208.22,22.21701511]
[1731685232624,0.1,208.26,208.22,22.21701511]
[1731685232945,3.55477462,208.26,208.25,22.21701511]
[1731685233232,0.19367462,208.26,208.25,22.21701511]
[1731685233530,0.1,208.24,208.23,22.21701511]
[1731685233732,0.1,208.23,208.22,22.21701511]
[1731685234333,24.027864,208.24,208.22,22.21701511]
[1731685234514,24.027864,208.24,208.23,22.21701511]
[1731685234705,0.1,208.23,208.22,22.21701511]
[1731685234907,27.489464,208.23,208.22,22.21701511]
[1731685235327,24.027864,208.23,208.22,22.21701511]
[1731685235828,24.127864,208.22,208.18,22.21701511]
[1731685236025,0.35098,208.22,208.19,22.21701511]
[1731685236231,0.25098,208.22,208.19,22.21701511]
[1731685237107,0.25098,208.22,208.2,22.21701511]
[1731685237327,0.25098,208.22,208.21,22.21701511]
[1731685237535,23.776884,208.24,208.22,6.2504]
[1731685237737,0.4742686,208.31,208.28,22.21701511]
[1731685237945,0.4742686,208.31,208.3,22.21701511]
[1731685238240,0.4742686,208.31,208.29,22.21701511]
[1731685238742,0.4742686,208.31,208.28,22.21701511]
[1731685238910,0.4742686,208.31,208.26,22.21701511]
[1731685239531,0.4742686,208.31,208.27,22.21701511]
[1731685239717,0.1,208.3,208.25,22.21701511]
[1731685239918,0.25098,208.29,208.23,22.21701511]
[1731685240134,0.25098,208.29,208.24,22.21701511]
[1731685240341,0.25098,208.3,208.24,22.21701511]
[1731685240550,0.35098,208.3,208.25,22.21701511]
[1731685240730,3.71158,208.3,208.24,22.21701511]
[1731685240929,3.71158,208.3,208.21,16.8098]
[1731685240930,25.92859511,208.3,208.23,22.21701511]
[1731685241240,25.82859511,208.3,208.23,22.21701511]
[1731685241420,25.92859511,208.3,208.23,22.21701511]
[1731685242333,32.21759511,208.3,208.23,22.21701511]
[1731685242533,0.12549,208.28,208.22,22.21701511]
[1731685242723,0.25098,208.28,208.23,22.21701511]
[1731685243236,0.25098,208.29,208.23,22.21701511]
[1731685243813,22.54226371,208.31,208.24,22.21701511]
[1731685244025,0.3252486,208.31,208.3,22.21701511]
[1731685244230,0.3252486,208.31,208.3,44.43403022]
[1731685245337,0.5762286,208.31,208.3,49.23473022]
[1731685246129,0.3252486,208.31,208.3,49.23473022]
[1731685246751,6.541,208.47,208.35,0.1]
[1731685246921,0.1,208.46,208.41,22.21701511]
[1731685247122,12.75283119,208.47,208.41,22.21701511]
[1731685247439,34.9698463,208.47,208.4,22.21701511]
[1731685247642,22.21701511,208.44,208.37,22.21701511]
[1731685247817,22.21701511,208.44,208.35,22.21701511]
[1731685247818,0.25098,208.41,208.35,22.21701511]
[1731685248021,0.25098,208.4,208.35,22.21701511]
[1731685248229,0.12549,208.37,208.32,22.21701511]
[1731685248553,20.25098,208.4,208.35,22.21701511]
[1731685248841,22.46799511,208.4,208.33,22.21701511]
[1731685249018,22.46799511,208.4,208.34,22.21701511]
[1731685249217,0.25098,208.4,208.35,22.21701511]
[1731685249449,22.21701511,208.4,208.34,22.21701511]
[1731685249615,23.60978,208.41,208.33,22.21701511]
[1731685249616,22.46799511,208.39,208.33,22.21701511]
[1731685249822,0.25098,208.36,208.31,22.21701511]
[1731685250035,0.25098,208.34,208.3,22.21701511]
[1731685250248,0.25098,208.34,208.29,22.21701511]
[1731685250545,0.25098,208.34,208.3,22.21701511]
[1731685251044,22.46799511,208.34,208.27,22.21701511]
[1731685251344,0.25098,208.32,208.27,22.21701511]
[1731685252541,3.61118,208.32,208.26,22.21701511]
[1731685252740,25.82819511,208.32,208.26,22.21701511]
[1731685253422,22.21701511,208.31,208.25,22.21701511]
[1731685253724,0.25098,208.3,208.27,22.21701511]
[1731685254235,22.46799511,208.31,208.25,22.21701511]
[1731685254419,22.46799511,208.31,208.24,22.21701511]
[1731685254619,0.25098,208.32,208.28,22.21701511]
[1731685254827,25.82819511,208.32,208.26,22.21701511]
[1731685255042,0.25098,208.3,208.25,22.21701511]
[1731685255244,0.25098,208.28,208.23,22.21701511]
[1731685255627,22.21701511,208.27,208.19,0.1]
[1731685255822,0.25098,208.26,208.21,22.21701511]
[1731685256141,0.25098,208.26,208.23,22.21701511]
[1731685256320,0.25098,208.28,208.23,22.21701511]
[1731685256841,3.61198,208.28,208.23,22.21701511]
[1731685257430,3.61198,208.28,208.24,22.21701511]
[1731685257747,3.61198,208.28,208.2,4.8029]
[1731685257748,3.61198,208.28,208.23,22.21701511]
[1731685258643,6.33304368,208.31,208.23,22.21701511]
[1731685258644,3.3602,208.32,208.27,22.21701511]
[1731685258952,25.57721511,208.32,208.26,22.21701511]
[1731685259255,22.21701511,208.31,208.24,22.21701511]
[1731685259556,25.57721511,208.32,208.26,22.21701511]
[1731685259736,22.21701511,208.31,208.25,22.31701511]
[1731685260247,22.34250511,208.31,208.25,22.31701511]
[1731685260425,0.12549,208.28,208.23,22.31701511]
[1731685260744,0.12549,208.28,208.18,12.0085]
[1731685260745,22.34250511,208.26,208.21,0.1]
[1731685260947,22.21701511,208.25,208.19,0.1]
[1731685261241,0.25098,208.24,208.19,0.1]
[1731685261449,0.25098,208.24,208.19,22.31701511]
[1731685261756,25.82949511,208.24,208.19,0.1]
[1731685262138,25.82949511,208.24,208.18,22.21701511]
[1731685262355,22.34250511,208.2,208.15,0.1]
[1731685262647,22.34250511,208.2,208.12,4.8048]
[1731685262648,0.12549,208.17,208.13,0.1]
[1731685262831,0.12549,208.17,208.1,12.0134]
[1731685262832,0.12549,208.15,208.11,0.1]
[1731685263033,0.25098,208.15,208.11,0.1]
[1731685263337,0.25098,208.15,208.12,22.21701511]
[1731685263538,0.12549,208.16,208.15,0.1]
[1731685263747,0.12549,208.22,208.17,0.1]
[1731685263943,0.12549,208.24,208.19,22.31701511]
[1731685264257,22.21701511,208.25,208.19,22.31701511]
[1731685264555,3.3613,208.26,208.22,0.1]
[1731685264758,3.3613,208.26,208.22,22.31701511]
[1731685264936,3.3613,208.26,208.15,16.8145]
[1731685264937,3.3603,208.32,208.26,0.1]
[1731685265127,15.0794,208.33,208.29,22.21701511]
[1731685265326,22.21701511,208.37,208.31,0.1]
[1731685265549,22.21701511,208.36,208.29,22.31701511]
[1731685265747,0.1,208.35,208.25,0.1]
[1731685265965,3.3595,208.36,208.25,0.1]
[1731685266130,3.3595,208.36,208.28,0.1]
[1731685266544,0.1,208.34,208.24,0.1]
[1731685266833,22.21701511,208.3,208.26,0.1]
[1731685267041,22.21701511,208.31,208.26,0.1]
[1731685267754,0.25098,208.3,208.26,0.1]
[1731685268167,0.25098,208.29,208.27,22.21701511]
[1731685268830,0.25098,208.3,208.28,0.1]
[1731685269036,0.25098,208.32,208.28,0.1]
[1731685270027,3.61118,208.32,208.28,0.1]
[1731685270251,22.21701511,208.3,208.26,0.1]
[1731685270459,0.25098,208.29,208.24,0.1]
[1731685270832,22.46799511,208.29,208.24,0.1]
[1731685271160,0.25098,208.29,208.24,0.1]
[1731685271345,0.25098,208.29,208.24,22.31701511]
[1731685271654,3.3602,208.32,208.28,0.1]
[1731685271655,0.25098,208.31,208.28,0.1]
[1731685272063,0.25098,208.3,208.28,0.1]
[1731685272234,6.3174,208.39,208.3,0.1]
[1731685272435,6.3174,208.39,208.21,24.0136]
[1731685272436,22.21701511,208.38,208.32,0.1]
[1731685272742,22.21701511,208.35,208.32,0.1]
[1731685272947,22.21701511,208.34,208.3,0.1]
[1731685273156,22.21701511,208.33,208.3,0.1]
[1731685273352,22.21701511,208.32,208.28,0.1]
[1731685273736,22.21701511,208.29,208.25,0.1]
[1731685274034,0.1,208.35,208.23,0.1]
[1731685274035,22.46799511,208.26,208.23,0.1]
[1731685274231,0.25098,208.26,208.23,0.1]
[1731685274458,22.46799511,208.26,208.23,0.1]
[1731685274645,22.46799511,208.26,208.21,0.1]
[1731685274646,0.25098,208.26,208.21,0.1]
[1731685274847,0.25098,208.24,208.21,0.1]
[1731685275047,22.46799511,208.24,208.21,0.1]
[1731685275252,22.46799511,208.22,208.17,0.1]
[1731685275456,22.21701511,208.19,208.15,0.1]
[1731685275656,22.46799511,208.18,208.13,0.1]
[1731685275841,22.21701511,208.16,208.13,0.1]
[1731685276157,22.21701511,208.16,208.09,12.0135]
[1731685276158,0.25098,208.13,208.09,0.1]
[1731685276367,0.25098,208.13,208.0,16.3215]
[1731685276368,0.25098,208.13,208.06,0.1]
[1731685276542,3.48819,208.17,208.13,0.1]
[1731685276740,3.48819,208.17,208.06,4.8063]
[1731685276741,0.12549,208.16,208.15,0.1]
[1731685276954,0.12549,208.17,208.15,0.1]
[1731685277153,0.12549,208.16,208.13,0.1]
[1731685277766,0.12549,208.16,208.15,0.1]
[1731685277956,0.12549,208.16,208.15,22.31701511]
[1731685278161,0.12549,208.16,208.15,0.1]
[1731685278666,22.21701511,208.24,208.2,0.1]
[1731685278868,0.25098,208.23,208.2,0.1]
[1731685279161,0.12549,208.23,208.2,22.31701511]
[1731685279371,22.21701511,208.29,208.25,0.1]
[1731685279559,3.3605,208.3,208.27,0.1]
[1731685279767,3.3605,208.3,208.25,0.1]
[1731685280061,22.21701511,208.29,208.23,0.1]
[1731685280271,3.3608,208.28,208.25,0.1]
[1731685280439,22.21701511,208.32,208.29,0.1]
[1731685280641,3.3597,208.35,208.31,0.1]
[1731685280857,3.3597,208.35,208.34,0.1]
[1731685282062,3.61068,208.35,208.34,0.1]
[1731685282265,0.25098,208.34,208.32,0.1]
[1731685282470,22.46799511,208.34,208.3,0.1]
[1731685282765,0.25098,208.32,208.3,0.1]
[1731685283361,0.25098,208.34,208.3,0.1]
[1731685283575,3.3597,208.35,208.32,0.1]
[1731685283743,25.57671511,208.35,208.3,0.1]
[1731685283948,22.21701511,208.32,208.3,0.1]
[1731685284170,22.21701511,208.32,208.28,0.1]
[1731685284971,3.61128,208.31,208.28,0.1]
[1731685285175,3.61128,208.31,208.3,0.1]
[1731685285469,7.47187167,208.41,208.3,22.21701511]
[1731685285699,29.98194608,208.45,208.3,22.21701511]
[1731685285700,3.3585,208.43,208.41,0.1]
[1731685285865,38.12241511,208.45,208.41,0.1]
[1731685285866,19.2636,208.45,208.41,0.1]
[1731685286068,41.48061511,208.45,208.41,0.1]
[1731685286240,25.57521511,208.45,208.41,0.1]
[1731685286445,3.3582,208.45,208.41,0.1]
[1731685286652,25.57521511,208.45,208.41,0.1]
[1731685287259,22.21701511,208.42,208.37,0.1]
[1731685287462,22.21701511,208.39,208.35,0.1]
[1731685287661,0.25098,208.37,208.35,0.1]
[1731685287970,0.25098,208.38,208.35,0.1]
[1731685288466,22.21701511,208.42,208.4,0.1]
[1731685288767,3.8313686,208.52,208.44,0.1]
[1731685288973,22.21701511,208.46,208.44,0.1]
[1731685289268,3.8313686,208.52,208.46,0.1]
[1731685289650,3.9313686,208.52,208.44,0.1]
[1731685289843,3.9313686,208.52,208.42,0.1]
[1731685290149,22.21701511,208.45,208.42,0.1]
[1731685290347,22.21701511,208.47,208.45,0.1]
[1731685290645,0.4742686,208.52,208.5,0.1]
[1731685290845,3.8313686,208.52,208.48,0.1]
[1731685291046,26.04838371,208.52,208.46,0.1]
[1731685291344,22.21701511,208.5,208.44,0.1]
[1731685291865,0.12549,208.49,208.44,22.31701511]
[1731685292077,0.12549,208.48,208.44,22.31701511]
[1731685292274,0.12549,208.48,208.47,0.1]
[1731685292569,0.12549,208.48,208.45,0.1]
[1731685292946,22.34250511,208.48,208.43,0.1]
[1731685293667,3.3574,208.49,208.41,22.21701511]
[1731685293668,0.25098,208.44,208.41,0.1]
[1731685293859,22.21701511,208.43,208.39,0.1]
[1731685294055,0.12549,208.4,208.39,0.1]
[1731685295572,0.12549,208.4,208.37,0.1]
[1731685295767,0.12549,208.41,208.35,22.31701511]
[1731685295974,0.12549,208.4,208.35,0.1]
[1731685296150,3.359,208.39,208.35,0.1]
[1731685296350,0.25098,208.38,208.35,0.1]
[1731685296546,0.25098,208.38,208.35,22.31701511]
[1731685296751,0.12549,208.38,208.37,22.31701511]
[1731685296973,0.12549,208.38,208.37,0.1]
[1731685297690,0.25098,208.37,208.31,0.1]
[1731685297857,22.46799511,208.37,208.28,0.1]
[1731685298054,22.21701511,208.32,208.3,0.1]
[1731685298251,0.25098,208.33,208.28,22.31701511]
[1731685298557,0.25098,208.3,208.28,0.1]
[1731685299057,0.25098,208.28,208.26,0.1]
[1731685299255,22.46799511,208.27,208.26,0.1]
[1731685299455,0.25098,208.27,208.26,0.1]
[1731685300713,0.25098,208.27,208.2,0.1]
[1731685300714,0.25098,208.26,208.2,0.1]
[1731685300985,0.25098,208.2,208.18,0.1]
[1731685301579,0.25098,208.22,208.18,0.1]
[1731685302072,0.25098,208.24,208.23,0.1]
[1731685303251,22.21701511,208.31,208.25,0.1]
[1731685303451,3.3603,208.31,208.28,0.1]
[1731685304064,3.3603,208.31,208.24,0.1]
[1731685304273,3.3603,208.31,208.15,31.96432789]
[1731685304274,22.21701511,208.25,208.2,0.1]
[1731685304455,22.21701511,208.24,208.2,0.1]
[1731685304672,0.25098,208.23,208.2,0.1]
[1731685304852,0.25098,208.23,208.15,31.96432789]
[1731685304853,0.25098,208.21,208.18,0.1]
[1731685305050,0.12549,208.21,208.2,0.1]
[1731685305385,0.25098,208.25,208.23,0.1]
[1731685305685,0.25098,208.25,208.21,0.1]
[1731685305848,0.25098,208.23,208.21,0.1]
[1731685306054,22.21701511,208.22,208.16,0.1]
[1731685306253,0.12549,208.19,208.18,0.1]
[1731685306674,0.25098,208.19,208.16,0.1]
[1731685306881,0.25098,208.19,208.18,0.1]
[1731685307173,0.25098,208.19,208.11,6.4035]
[1731685307174,22.46799511,208.19,208.16,0.1]
[1731685308078,25.83039511,208.19,208.16,0.1]
[1731685308578,0.12549,208.17,208.14,0.1]
[1731685308752,0.25098,208.17,208.16,0.1]
[1731685309268,0.25098,208.17,208.14,0.1]
[1731685309463,22.46799511,208.18,208.14,0.1]
[1731685309665,22.46799511,208.15,208.12,0.1]
[1731685309869,0.25098,208.13,208.1,0.1]
[1731685310184,25.58011511,208.14,208.05,16.5937]
[1731685310185,0.25098,208.11,208.08,0.1]
[1731685310565,0.25098,208.11,208.08,22.31701511]
[1731685310882,0.25098,208.13,208.08,22.31701511]
[1731685311857,0.25098,208.11,208.08,0.1]
[1731685312370,0.25098,208.11,208.06,22.31701511]
[1731685313160,22.46799511,208.11,208.04,22.31701511]
[1731685313379,0.25098,208.09,208.04,0.1]
[1731685313880,0.25098,208.07,208.06,0.1]
[1731685314059,0.12549,208.07,208.06,0.1]
[1731685314573,0.12549,208.08,208.04,0.1]
[1731685315379,0.12549,208.08,208.06,0.1]
[1731685315579,0.12549,208.08,208.07,22.21701511]
[1731685315772,22.1865,208.16,208.1,0.1]
[1731685316089,3.3629,208.15,208.12,0.1]
[1731685316583,3.3629,208.15,208.12,22.31701511]
[1731685316768,3.3629,208.15,208.12,0.1]
[1731685317083,22.21701511,208.14,208.08,0.1]
[1731685317290,3.3629,208.15,208.06,0.1]
[1731685317291,0.12549,208.1,208.06,0.1]
[1731685317460,0.12549,208.1,208.04,0.1]
[1731685317461,22.34250511,208.1,208.04,0.1]
[1731685317886,0.12549,208.1,208.05,22.21701511]
[1731685318087,0.12549,208.08,208.06,22.21701511]
[1731685318285,0.25098,208.08,208.07,22.21701511]
[1731685318663,0.12549,208.08,208.07,22.21701511]
[1731685319485,0.25098,208.09,208.06,0.1]
[1731685319784,0.25098,208.09,208.04,22.31701511]
[1731685320084,3.3638,208.1,208.06,0.1]
[1731685320085,0.25098,208.07,208.06,0.1]
[1731685320297,22.46799511,208.07,208.04,0.1]
[1731685320458,0.25098,208.04,208.02,0.1]
[1731685320657,0.25098,208.04,208.0,0.1]
[1731685320890,8.408,208.14,208.08,0.1]
[1731685321092,3.3632,208.13,208.08,0.1]
[1731685321600,25.58021511,208.13,208.08,0.1]
[1731685321961,25.58021511,208.13,208.06,22.31701511]
[1731685322163,0.25098,208.12,208.07,22.21701511]
[1731685322362,22.21701511,208.11,208.04,22.31701511]
[1731685322589,0.12549,208.07,208.01,0.1]
[1731685322774,0.25098,208.05,207.97,0.1]
[1731685322968,0.25098,208.05,208.01,0.1]
[1731685323578,0.25098,208.05,208.03,0.1]
[1731685323874,0.12549,208.05,208.03,22.31701511]
[1731685324089,30.62521511,208.13,208.04,22.21701511]
[1731685324386,22.21701511,208.15,208.1,0.1]
[1731685324561,22.21701511,208.13,208.08,0.1]
[1731685324765,11.8696,208.16,208.06,0.1]
[1731685324986,0.1,208.14,208.04,0.1]
[1731685325191,22.21701511,208.08,208.04,0.1]
[1731685325381,22.21701511,208.08,208.02,0.1]
[1731685325564,28.5835,208.16,208.02,0.1]
[1731685325565,22.21701511,208.07,208.02,0.1]
[1731685325766,0.25098,208.05,208.02,0.1]
[1731685325976,3.3645,208.05,208.02,0.1]
[1731685326295,0.12549,208.04,208.03,22.21701511]
[1731685326680,3.3642,208.08,208.05,0.1]
[1731685326886,25.58121511,208.08,208.03,0.1]
[1731685327073,3.3642,208.08,208.05,0.1]
[1731685327270,3.3642,208.08,208.07,0.1]
[1731685327690,22.21701511,208.12,208.07,0.1]
[1731685327873,8.4074,208.15,208.0,22.21701511]
[1731685327874,3.3638,208.1,208.05,0.1]
[1731685328079,22.21701511,208.08,208.03,0.1]
[1731685328294,3.3638,208.1,208.07,0.1]
[1731685329296,3.48949,208.08,208.07,0.1]
[1731685329992,3.3634,208.12,208.09,0.1]
[1731685330187,3.3634,208.12,208.11,0.1]
[1731685330389,3.3634,208.12,208.09,0.1]
[1731685330730,3.3634,208.12,208.07,0.1]
[1731685330999,22.21701511,208.09,208.07,0.1]
[1731685331198,0.25098,208.08,208.07,0.1]
[1731685331490,22.21701511,208.09,208.07,0.1]
[1731685331491,22.21701511,208.14,208.09,0.1]
[1731685331697,22.21701511,208.13,208.09,0.1]
[1731685331894,11.7702,208.15,208.09,0.1]
[1731685332102,3.3619,208.21,208.18,0.1]
[1731685332468,3.3619,208.21,208.09,6.3524]
[1731685332469,3.3619,208.21,208.16,0.1]
[1731685332674,3.3619,208.21,208.19,0.1]
[1731685333300,33.98271511,208.23,208.17,0.1]
[1731685333604,22.21701511,208.18,208.11,0.1]
[1731685333898,22.21701511,208.13,208.11,0.1]
[1731685334194,0.25098,208.12,208.11,0.1]
[1731685334398,0.25098,208.12,208.09,0.1]
[1731685334700,0.12549,208.1,208.09,0.1]
[1731685335198,22.34250511,208.1,208.09,0.1]
[1731685335402,0.12549,208.08,208.07,0.1]
[1731685335590,3.3636,208.11,208.09,0.1]
[1731685335799,6.29569912,208.18,208.17,0.1]
[1731685335999,22.21701511,208.2,208.18,0.1]
[1731685336294,22.21701511,208.19,208.18,0.1]
[1731685336495,22.21701511,208.19,208.16,0.1]
[1731685336685,22.21701511,208.18,208.16,0.1]
[1731685336889,8.4036,208.25,208.09,16.5296]
[1731685336890,22.21701511,208.17,208.14,0.1]
[1731685337107,22.21701511,208.15,208.12,0.1]
[1731685337395,25.83119511,208.13,208.12,0.1]
[1731685337879,0.25098,208.12,208.1,0.1]
[1731685338082,22.46799511,208.11,208.1,0.1]
[1731685338275,3.3632,208.13,208.12,0.1]
[1731685338595,3.3631,208.14,208.12,0.1]
[1731685338991,3.3631,208.14,208.1,0.1]
[1731685339210,3.3631,208.14,208.08,0.1]
[1731685339211,22.21701511,208.11,208.08,0.1]
[1731685339378,25.58091511,208.09,208.08,0.1]
[1731685339710,3.61488,208.09,208.08,0.1]
[1731685339878,3.3639,208.09,208.08,0.1]
[1731685340891,0.25098,208.13,208.12,0.1]
[1731685341185,22.46799511,208.13,208.12,0.1]
[1731685342309,25.83119511,208.13,208.12,0.1]
[1731685342593,25.83119511,208.13,208.04,4.8067]
[1731685342594,25.83119511,208.13,208.1,0.1]
[1731685342806,22.46799511,208.11,208.1,0.1]
[1731685343596,3.3632,208.13,208.1,0.1]
[1731685343597,0.12549,208.12,208.1,0.1]
[1731685343974,0.12549,208.12,208.0,40.50021511]
[1731685343975,0.25098,208.1,208.08,0.1]
[1731685344179,25.83189511,208.09,208.08,0.1]
[1731685345017,0.25098,208.08,208.04,0.1]
[1731685345303,0.25098,208.08,207.96,0.1]
[1731685345304,0.25098,208.04,207.96,0.1]
[1731685345480,22.46799511,207.97,207.96,0.1]
[1731685345684,22.46799511,207.97,207.94,0.1]
[1731685345876,22.21701511,207.95,207.94,0.1]
[1731685346082,0.25098,207.94,207.92,0.1]
[1731685346305,3.3661,207.95,207.92,0.1]
[1731685346596,3.3661,207.95,207.94,0.1]
[1731685346903,3.61688,207.97,207.96,0.1]
[1731685347108,25.83389511,207.97,207.96,0.1]
[1731685348409,3.61658,207.99,207.96,0.1]
[1731685348780,25.83359511,207.99,207.98,0.1]
[1731685349200,25.83359511,207.99,207.94,0.1]
[1731685349409,0.25098,207.94,207.92,0.1]
[1731685349614,22.46799511,207.93,207.92,0.1]
[1731685349799,0.25098,207.92,207.9,0.1]
[1731685350104,0.25098,207.98,207.92,0.1]
[1731685350315,0.25098,207.94,207.92,0.1]
[1731685350485,22.21701511,207.98,207.92,22.31701511]
[1731685351001,3.3648,208.03,208.02,0.1]
[1731685351188,3.3642,208.07,208.01,0.1]